bitfinex/quotes_ETHUSD_20240928
["timestamp","ask_amount","ask_price","bid_price","bid_amount"]
[1727530629508,6.15146492,2665.0,2664.5,0.37531]
[1727530629698,0.08081616,2664.9,2664.5,0.37531]
[1727530633999,0.08081616,2664.9,2664.5,4.12827]
[1727530634326,0.08081616,2664.9,2664.6,0.788135]
[1727530636343,0.08081616,2664.9,2664.7,3.75268]
[1727530637743,0.08081616,2664.9,2664.6,4.540955]
[1727530638441,0.08081616,2664.9,2664.6,0.788135]
[1727530638651,0.89991616,2664.9,2664.5,3.75296]
[1727530639351,0.89991616,2664.9,2664.6,3.7529]
[1727530640521,0.08081616,2664.9,2664.6,3.7529]
[1727530640842,0.08081616,2664.9,2664.6,5.325898]
[1727530643477,0.08081616,2664.9,2664.6,4.5753]
[1727530645038,4.57173,2664.8,2664.4,3.75317]
[1727530645232,0.90008467,2664.8,2664.4,3.7531]
[1727530645436,0.90008467,2664.8,2664.4,4.51065]
[1727530645679,0.90008467,2664.8,2664.4,8.26374]
[1727530645879,0.90008467,2664.8,2664.4,8.26376]
[1727530647836,0.90008467,2664.8,2664.4,4.51064]
[1727530648039,4.65270467,2664.8,2664.4,3.75309]
[1727530648340,0.90008467,2664.8,2664.4,3.75309]
[1727530648739,0.90008467,2664.8,2664.4,7.50619]
[1727530649280,0.90008467,2664.8,2664.5,3.75303]
[1727530649682,0.90008467,2664.8,2664.4,3.75309]
[1727530649977,0.90008467,2664.8,2664.4,7.50619]
[1727530650281,0.90008467,2664.8,2664.1,5.40814492]
[1727530650450,0.90008467,2664.8,2664.4,3.75307]
[1727530650949,0.90008467,2664.8,2664.3,3.75331]
[1727530651151,0.90008467,2664.8,2664.5,3.75304]
[1727530651388,2.90008467,2664.8,2664.5,3.75304]
[1727530653845,2.90008467,2664.8,2664.6,3.75289]
[1727530654653,2.90008467,2664.8,2664.4,4.50385]
[1727530654849,0.90008467,2664.8,2664.5,3.75294]
[1727530655087,0.90008467,2664.8,2664.7,6.08930492]
[1727530655088,0.08098467,2664.8,2664.7,6.08930492]
[1727530655241,0.3927135,2665.0,2664.9,3.75248]
[1727530655447,0.47366889,2665.0,2664.9,3.75248]
[1727530655979,0.47366889,2665.0,2664.9,4.74416295]
[1727530658256,0.47366889,2665.0,2664.9,0.99168295]
[1727530658739,0.47366889,2665.0,2664.8,3.75255]
[1727530658941,0.47366889,2665.0,2664.8,3.75254]
[1727530661709,4.22608889,2665.0,2664.2,4.02639486]
[1727530661884,3.75253,2664.9,2664.4,3.7531]
[1727530662084,3.83374912,2664.9,2664.4,4.48813342]
[1727530663088,0.08121912,2664.9,2664.4,4.48813342]
[1727530663406,0.08121912,2664.9,2664.5,3.75292]
[1727530664704,0.08121912,2664.9,2664.4,8.24123342]
[1727530665411,0.08121912,2664.9,2664.5,3.75304]
[1727530670975,0.8039,2664.8,2664.4,8.24120342]
[1727530671180,0.8039,2664.8,2664.4,7.50617]
[1727530671387,0.08118249,2664.7,2664.5,3.75304]
[1727530671817,2.8039,2664.8,2664.5,3.75304]
[1727530672281,0.08104331,2664.7,2664.5,3.75304]
[1727530672481,2.8039,2664.8,2664.5,3.75304]
[1727530672723,0.08104331,2664.6,2664.5,3.75304]
[1727530672875,2.8039,2664.8,2664.5,4.73820549]
[1727530673076,0.08104331,2664.6,2664.5,3.75304]
[1727530673281,2.0,2664.8,2664.6,3.75287]
[1727530673508,2.34485605,2665.0,2664.6,3.75287]
[1727530673932,2.34485605,2665.0,2664.4,3.75307]
[1727530674151,6.09723605,2665.0,2664.5,3.75304]
[1727530676631,2.34485605,2665.0,2664.6,3.75286]
[1727530677374,1.1687135,2665.0,2664.6,3.75286]
[1727530678864,2.34485605,2665.0,2664.6,3.75286]
[1727530679223,1.1687135,2665.0,2664.6,3.75286]
[1727530680064,2.34485605,2665.0,2664.6,3.75286]
[1727530680244,1.1687135,2665.0,2664.6,3.75286]
[1727530680425,2.34485605,2665.0,2664.6,3.75286]
[1727530682373,0.08115318,2664.9,2664.6,3.75286]
[1727530684258,0.08115318,2664.9,2664.7,3.75274]
[1727530685786,0.08115318,2664.9,2664.7,3.75269]
[1727530686083,0.08115318,2664.9,2664.8,3.75262]
[1727530689685,0.08115318,2664.9,2664.7,4.503263]
[1727530689976,0.08115318,2664.9,2664.7,7.50535]
[1727530690271,0.08115318,2664.9,2664.7,3.75266]
[1727530690953,0.08115318,2664.9,2664.8,3.75262]
[1727530697677,0.08115318,2664.9,2664.7,3.75266]
[1727530698497,0.08115318,2664.9,2664.8,3.75262]
[1727530698992,0.08115318,2664.9,2664.5,3.75293]
[1727530699342,6.09367492,2664.8,2664.3,3.75325]
[1727530699594,7.35113914,2664.8,2664.3,3.75325]
[1727530700162,1.17614255,2664.7,2664.3,3.75325]
[1727530700501,1.2574569,2664.7,2664.3,3.75325]
[1727530700992,0.08131435,2664.7,2664.3,3.75325]
[1727530701298,0.7553,2664.6,2664.3,3.75325]
[1727530701450,0.83661435,2664.6,2664.3,3.75325]
[1727530704593,0.83661435,2664.6,2664.3,3.75324]
[1727530705496,0.83661435,2664.6,2664.3,7.50649]
[1727530705852,0.83661435,2664.6,2664.3,3.75324]
[1727530706049,0.83661435,2664.6,2664.1,5.00320035]
[1727530706308,0.83661435,2664.6,2664.1,7.50703]
[1727530706599,2.0127569,2664.6,2664.2,3.75338]
[1727530708401,0.83661435,2664.6,2664.2,3.75338]
[1727530708601,0.83661435,2664.6,2664.1,3.75351]
[1727530708602,0.83661435,2664.6,2664.3,3.75332]
[1727530709099,2.0127569,2664.6,2664.3,3.75332]
[1727530709289,0.83661435,2664.6,2664.3,3.75332]
[1727530709691,0.83661435,2664.6,2663.4,5.72631316]
[1727530709692,0.7553,2664.4,2663.7,3.75408]
[1727530710002,0.7553,2664.2,2663.8,3.75402]
[1727530710311,0.7553,2664.2,2663.7,3.75408]
[1727530710312,0.08051576,2664.1,2663.7,3.75408]
[1727530710491,0.08051576,2664.1,2663.9,3.75388]
[1727530715623,0.08051576,2664.1,2663.8,3.754]
[1727530716195,0.03051576,2664.1,2663.8,3.754]
[1727530716485,0.07868787,2664.1,2663.8,3.754]
[1727530721981,0.07868787,2664.1,2663.9,3.75388]
[1727530722145,0.07868787,2664.1,2664.0,3.75375]
[1727530730371,0.83768787,2664.1,2663.9,3.75382]
[1727530730860,0.83768787,2664.1,2663.9,7.50762]
[1727530731017,0.83768787,2664.1,2664.0,3.75375]
[1727530733735,0.83768787,2664.1,2663.8,3.75401]
[1727530734478,0.83768787,2664.1,2663.6,4.66765249]
[1727530735264,0.83768787,2664.1,2663.7,3.75415]
[1727530735582,0.83768787,2664.1,2663.7,3.75408]
[1727530738084,0.83768787,2664.1,2663.7,7.50818]
[1727530740197,0.83768787,2664.1,2663.8,3.75395]
[1727530740356,0.07868787,2664.1,2663.9,4.54649]
[1727530741562,0.07868787,2664.1,2664.0,3.75375]
[1727530743882,0.07868787,2664.1,2664.0,4.50435]
[1727530744096,0.07868787,2664.1,2664.0,6.65953442]
[1727530744261,0.00295522,2664.2,2664.1,7.50421]
[1727530744455,0.00295522,2664.2,2664.1,11.24513834]
[1727530744663,0.00295522,2664.2,2664.1,11.17008405]
[1727530745170,0.39267213,2665.0,2664.9,3.75248]
[1727530745384,0.46575573,2665.0,2664.9,3.75248]
[1727530745773,0.46575573,2665.0,2664.9,5.95461163]
[1727530748330,0.0730836,2665.0,2664.9,5.95461163]
[1727530748596,2.0,2665.5,2665.2,3.75198]
[1727530748811,2.0,2665.5,2665.2,4.127178]
[1727530751709,2.0,2665.5,2665.2,4.20221181]
[1727530752217,2.0,2665.5,2665.2,0.375198]
[1727530752500,2.0,2665.5,2665.1,3.75218]
[1727530752662,1.2163366,2665.7,2665.2,3.75204]
[1727530753402,4.9676966,2665.7,2665.2,3.75204]
[1727530753707,1.2163366,2665.7,2665.3,3.75187]
[1727530753904,1.2163366,2665.7,2665.3,4.52997]
[1727530754791,1.2163366,2665.7,2665.3,0.7781]
[1727530755987,0.07223008,2665.6,2665.3,0.7781]
[1727530756304,0.07223008,2665.6,2665.2,3.75196]
[1727530761370,0.07223008,2665.6,2665.0,0.7831]
[1727530761371,0.7885,2665.5,2665.0,0.7831]
[1727530761671,0.0725963,2665.4,2665.0,4.53536]
[1727530762211,0.0725963,2665.4,2665.0,8.28762]
[1727530762506,0.0725963,2665.4,2665.0,4.53536]
[1727530762708,0.0725963,2665.4,2665.0,8.28763]
[1727530763111,0.0725963,2665.4,2665.1,3.75218]
[1727530763402,0.0725963,2665.4,2665.1,3.75216]
[1727530767213,0.0725963,2665.4,2665.0,4.73959749]
[1727530767436,0.0725963,2665.4,2665.1,3.7522]
[1727530768074,0.0725963,2665.4,2665.0,3.75226]
[1727530768429,0.0725963,2665.4,2665.0,7.50451]
[1727530769183,0.0725963,2665.4,2665.1,3.75218]
[1727530770422,0.0725963,2665.4,2665.2,3.75205]
[1727530770595,0.0725963,2665.4,2665.3,3.75192]
[1727530771107,0.0725963,2665.4,2665.2,3.75205]
[1727530771482,0.0725963,2665.4,2665.3,3.75192]
[1727530772102,0.3926366,2665.7,2665.5,3.75157]
[1727530772510,0.07255237,2665.6,2665.5,3.75157]
[1727530773330,0.07255237,2665.6,2665.5,4.57587]
[1727530774527,0.07255237,2665.6,2665.5,4.6508888]
[1727530774763,0.07255237,2665.6,2665.5,7.57587]
[1727530774959,2.79,2666.2,2665.7,3.75133]
[1727530775165,2.79,2666.2,2665.9,3.75106]
[1727530775326,0.07155836,2666.1,2665.9,3.75106]
[1727530780687,0.07155836,2666.1,2665.7,5.33696492]
[1727530780837,0.07155836,2666.1,2665.7,3.75122]
[1727530781039,0.07155836,2666.1,2665.8,3.75121]
[1727530784685,0.07155836,2666.1,2665.7,3.75122]
[1727530785072,0.8143,2666.0,2665.5,6.75154]
[1727530785378,0.8143,2666.0,2665.5,10.50309]
[1727530785585,0.07215858,2665.9,2665.5,10.50309]
[1727530785741,0.07215858,2665.9,2665.6,3.75146]
[1727530787997,0.07215858,2665.9,2665.7,3.75135]
[1727530791447,0.07215858,2665.9,2665.8,3.75121]
[1727530810447,2.7928,2666.2,2665.8,3.75121]
[1727530810619,0.06970717,2666.1,2665.9,3.75103]
[1727530811821,0.06970717,2666.1,2665.8,3.75113]
[1727530812151,0.06970717,2666.1,2665.8,7.50226]
[1727530812464,0.06970717,2666.1,2665.8,7.50227]
[1727530813122,0.06970717,2666.1,2665.9,3.75098]
[1727530816473,1.25000339,2666.1,2665.9,3.75098]
[1727530817725,0.06970717,2666.1,2665.9,3.75098]
[1727530818152,0.06970717,2666.1,2666.0,3.75093]
[1727530819367,0.06970717,2666.1,2666.0,4.584321]
[1727530820063,1.57289705,2666.3,2666.0,0.833391]
[1727530820268,0.06757875,2666.2,2666.1,3.75077]
[1727530820452,1.18029622,2666.2,2666.1,3.75077]
[1727530820642,1.24787497,2666.2,2666.1,3.75077]
[1727530820972,1.24787497,2666.2,2665.9,3.75097]
[1727530821265,2.05667497,2666.2,2665.9,3.75097]
[1727530821472,1.18029622,2666.1,2665.5,9.12429808]
[1727530821641,1.18029622,2666.1,2665.7,7.50252]
[1727530821843,0.06757875,2666.0,2665.6,1.86251028]
[1727530822175,1.24787497,2666.0,2665.6,0.832]
[1727530822388,1.24787497,2666.0,2665.7,3.75135]
[1727530823428,1.24787497,2666.0,2665.7,3.75125]
[1727530823643,0.06757875,2666.0,2665.8,0.458325]
[1727530824040,0.06757875,2666.0,2665.8,4.209425]
[1727530825341,0.06757875,2666.0,2665.8,0.458325]
[1727530825830,0.06757875,2666.0,2665.7,7.57753794]
[1727530826026,0.06757875,2666.0,2665.7,3.82626794]
[1727530826472,0.06757875,2666.0,2665.7,7.57754794]
[1727530826772,1.24787497,2666.0,2665.7,3.82626794]
[1727530826933,0.06757875,2666.0,2665.7,3.82626794]
[1727530827255,0.06757875,2666.0,2665.7,5.20452854]
[1727530827517,0.06757875,2666.0,2665.7,8.95579854]
[1727530827761,0.06757875,2666.0,2665.7,8.8807906]
[1727530827966,0.06757875,2666.0,2665.8,3.75121]
[1727530828979,0.06757875,2666.0,2665.8,3.82622794]
[1727530829479,0.06757875,2666.0,2665.9,4.58307]
[1727530829845,1.18029622,2666.2,2665.9,4.58307]
[1727530830051,0.06746152,2666.1,2666.0,3.75092]
[1727530830380,0.06746152,2666.1,2665.8,8.63969835]
[1727530830578,0.06746152,2666.1,2665.8,4.88848835]
[1727530830740,1.24775774,2666.1,2665.8,4.88848835]
[1727530830936,0.06746152,2666.1,2665.8,4.88848835]
[1727530831360,1.24775774,2666.1,2665.8,8.63962835]
[1727530831801,1.24775774,2666.1,2665.8,4.88848835]
[1727530832002,2.06645774,2666.1,2665.8,3.75114]
[1727530832200,2.10589633,2666.1,2665.8,3.75114]
[1727530832905,1.28719633,2666.1,2665.8,3.75111]
[1727530833106,1.28719633,2666.1,2665.9,4.209371]
[1727530833403,1.28719633,2666.1,2665.9,3.75106]
[1727530833404,0.10690011,2666.1,2665.9,3.75106]
[1727530833553,1.28719633,2666.1,2665.9,3.75106]
[1727530835095,0.10690011,2666.1,2665.9,3.75106]
[1727530835294,0.10690011,2666.1,2665.9,4.5845]
[1727530835496,0.10690011,2666.1,2665.9,8.33549]
[1727530836506,0.10690011,2666.1,2665.9,4.58443]
[1727530836655,0.10690011,2666.1,2665.9,8.33543]
[1727530837096,0.10690011,2666.1,2665.9,4.58443]
[1727530839683,0.10690011,2666.1,2665.7,4.58326]
[1727530839998,1.18029622,2666.0,2665.7,4.58326]
[1727530840189,1.28719633,2666.1,2665.7,4.58326]
[1727530840371,0.10701003,2665.9,2665.8,3.7512]
[1727530840574,1.18029622,2666.1,2665.8,3.7512]
[1727530840788,0.10701003,2665.9,2665.8,3.7512]
[1727530840980,1.18029622,2666.1,2665.8,4.584646]
[1727530841193,0.10701003,2665.9,2665.8,3.7512]
[1727530841366,1.18029622,2666.1,2665.8,3.7512]
[1727530841571,0.10701003,2665.9,2665.8,3.7512]
[1727530842092,1.18029622,2666.1,2665.8,3.7512]
[1727530842403,0.10701003,2666.0,2665.8,3.7512]
[1727530843206,0.10701003,2666.0,2665.8,4.584646]
[1727530847816,0.10701003,2666.0,2665.7,4.58326]
[1727530848018,1.28730625,2666.0,2665.7,8.33452]
[1727530848188,0.10701003,2666.0,2665.7,4.58326]
[1727530848511,0.10701003,2666.0,2665.7,8.33454]
[1727530848667,0.10701003,2666.0,2665.8,0.833454]
[1727530848873,0.10701003,2666.0,2665.7,8.33454]
[1727530850072,0.10701003,2666.0,2665.7,8.33451]
[1727530850274,0.10701003,2666.0,2665.8,3.7512]
[1727530856833,0.10701003,2666.0,2665.9,3.75107]
[1727530857132,0.10701003,2666.0,2665.9,4.584502]
[1727530857303,0.10701003,2666.0,2665.9,3.75107]
[1727530858806,0.10701003,2666.0,2665.8,3.7512]
[1727530862228,0.10701003,2666.0,2665.9,3.75107]
[1727530862429,0.10701003,2666.0,2665.9,4.959622]
[1727530862929,1.18029622,2666.2,2666.0,3.75089]
[1727530863446,1.18029622,2666.2,2665.9,7.50205]
[1727530863596,6.55435604,2666.4,2666.3,3.75051]
[1727530863597,0.25818979,2666.4,2666.3,3.75051]
[1727530863796,2.40612829,2666.7,2666.4,3.75026]
[1727530864132,0.8324,2666.7,2666.4,5.33600492]
[1727530864840,0.8324,2666.7,2666.4,1.58574492]
[1727530865007,0.8324,2666.7,2666.5,3.75022]
[1727530867701,0.8324,2666.7,2666.4,1.58574492]
[1727530868325,0.8324,2666.7,2666.4,5.95288741]
[1727530868638,0.39254828,2666.8,2666.6,1.58574492]
[1727530868876,0.39254828,2666.8,2666.6,6.16805492]
[1727530869058,2.8324,2667.2,2666.7,3.74995]
[1727530869364,0.39253035,2667.1,2666.7,3.74991]
[1727530869766,0.39253035,2667.1,2666.9,3.74965]
[1727530870069,0.39253035,2667.1,2667.0,6.16757492]
[1727530870366,8.66491636,2667.6,2667.0,2.41804492]
[1727530870529,3.74891,2667.5,2666.9,3.74956]
[1727530870731,3.74891,2667.5,2667.0,3.74951]
[1727530871164,1.22491636,2667.6,2667.1,3.74937]
[1727530871472,1.22491636,2667.6,2667.1,3.74931]
[1727530872567,1.22491636,2667.6,2667.2,3.74923]
[1727530872778,1.22491636,2667.6,2667.4,3.74896]
[1727530872932,0.39251636,2667.6,2667.4,1.58574492]
[1727530873130,0.39251636,2667.6,2667.4,0.61592249]
[1727530873474,0.39251636,2667.6,2667.3,3.74898]
[1727530874566,0.39251636,2667.6,2667.1,3.74931]
[1727530874768,0.39251636,2667.6,2667.2,3.74924]
[1727530874941,0.39251636,2667.6,2667.1,3.74931]
[1727530875134,0.39251636,2667.6,2667.1,7.49861]
[1727530875477,0.39251636,2667.6,2667.2,3.74922]
[1727530876036,0.39251636,2667.6,2667.1,3.7493]
[1727530876238,0.39251636,2667.6,2667.1,8.01765605]
[1727530876445,0.39251636,2667.6,2667.1,4.26835605]
[1727530876675,0.39251636,2667.6,2667.2,3.74923]
[1727530876864,0.39251636,2667.6,2667.1,4.26835605]
[1727530876865,0.39251636,2667.6,2667.1,8.01766605]
[1727530877064,0.39251636,2667.6,2667.1,4.26835605]
[1727530877380,0.09607563,2667.5,2667.1,8.01766605]
[1727530877742,0.09607563,2667.5,2667.3,3.74901]
[1727530877977,0.09607563,2667.5,2667.3,4.17581661]
[1727530879284,0.09607563,2667.5,2667.3,3.74901]
[1727530880882,0.09607563,2667.5,2667.4,3.74896]
[1727530885283,0.09607563,2667.5,2667.4,5.33470492]
[1727530885910,0.7832,2667.9,2667.4,1.58574492]
[1727530886070,0.7832,2667.9,2667.7,3.7485]
[1727530886275,0.09694264,2667.8,2667.7,3.7485]
[1727530888422,0.09694264,2667.8,2667.5,4.35814349]
[1727530888628,0.09694264,2667.8,2667.5,8.10683349]
[1727530888945,0.09694264,2667.8,2667.7,3.74854]
[1727530889237,0.09694264,2667.8,2667.7,4.93407735]
[1727530890226,2.39249168,2668.0,2667.7,4.93407735]
[1727530890432,0.09699407,2667.8,2667.7,4.93407735]
[1727530890644,2.39249168,2668.0,2667.7,4.93407735]
[1727530890801,0.09699407,2667.8,2667.7,4.93407735]
[1727530891002,2.39249168,2668.0,2667.7,4.93407735]
[1727530891243,0.09699407,2667.8,2667.7,4.93407735]
[1727530891465,2.39249168,2668.0,2667.7,4.93407735]
[1727530891604,0.09699407,2667.8,2667.7,4.93407735]
[1727530891941,0.09699407,2667.8,2667.7,1.18553735]
[1727530892141,2.0,2668.0,2667.7,1.98493735]
[1727530892346,0.09699407,2667.8,2667.7,1.98493735]
[1727530892544,2.0,2668.0,2667.7,1.98493735]
[1727530892742,0.09721437,2667.8,2667.7,0.7994]
[1727530892899,2.0,2668.0,2667.7,0.7994]
[1727530893248,0.09721437,2667.9,2667.7,0.7994]
[1727530893708,0.09721437,2667.9,2667.7,4.54793]
[1727530893903,0.09721437,2667.9,2667.7,0.7994]
[1727530894139,0.09721437,2667.9,2667.7,1.41277349]
[1727530894758,0.09721437,2667.9,2667.7,0.61337349]
[1727530895743,0.09721437,2667.9,2667.7,4.36189349]
[1727530896619,0.09721437,2667.9,2667.7,0.61337349]
[1727530897155,0.09721437,2667.9,2667.7,4.36189349]
[1727530898348,0.09721437,2667.9,2667.8,0.81104535]
[1727530899636,0.09721437,2667.9,2667.8,4.55944535]
[1727530900949,0.09721437,2667.9,2667.8,6.96519027]
[1727530901244,0.09721437,2667.9,2667.8,0.81104535]
[1727530902155,0.09721437,2667.9,2667.8,4.55944535]
[1727530905384,0.09721437,2667.9,2667.8,3.7484]
[1727530905753,0.792,2667.8,2667.5,3.74875]
[1727530905955,0.792,2667.8,2667.6,3.74868]
[1727530905956,0.09728047,2667.7,2667.6,3.74868]
[1727530906207,0.792,2667.8,2667.6,3.74868]
[1727530906358,0.09728047,2667.7,2667.6,3.74868]
[1727530906588,0.09728047,2667.7,2667.5,3.74875]
[1727530906802,0.792,2667.8,2667.5,3.74875]
[1727530907087,0.792,2667.8,2667.4,3.74896]
[1727530907289,0.09728047,2667.7,2667.4,3.74896]
[1727530907483,0.792,2667.8,2667.4,3.74896]
[1727530907783,0.09728047,2667.7,2667.4,3.74896]
[1727530908222,0.792,2667.8,2667.4,3.74896]
[1727530908426,0.09728047,2667.6,2667.4,3.74896]
[1727530908627,0.792,2667.8,2667.5,3.74875]
[1727530909534,0.792,2667.8,2667.5,7.4975]
[1727530909710,2.39263252,2668.0,2667.5,4.51635]
[1727530910111,2.39263252,2668.0,2667.7,3.74854]
[1727530915128,3.57157737,2668.0,2667.7,3.74854]
[1727530915451,2.39263252,2668.0,2667.7,3.74854]
[1727530916221,3.57157737,2668.0,2667.7,3.74854]
[1727530917455,3.57157737,2668.0,2667.5,8.26506]
[1727530917652,1.17894485,2667.9,2667.6,3.74864]
[1727530917957,3.57157737,2668.0,2667.6,3.74864]
[1727530918529,3.57157737,2668.0,2667.7,3.74847]
[1727530918850,3.57157737,2668.0,2667.6,7.49725]
[1727530919523,1.17894485,2667.9,2667.5,3.74869]
[1727530919728,0.7798,2667.8,2667.5,3.74869]
[1727530921943,0.7798,2667.8,2667.5,7.49743]
[1727530922130,0.7798,2667.8,2667.5,3.74869]
[1727530922332,0.09735394,2667.7,2667.5,3.74869]
[1727530922660,0.7798,2667.8,2667.5,3.74869]
[1727530922816,0.0973466,2667.6,2667.5,3.74869]
[1727530923017,0.7798,2667.8,2667.5,3.74869]
[1727530923226,0.0973466,2667.6,2667.5,3.74869]
[1727530923532,0.7798,2667.8,2667.5,3.74869]
[1727530923729,0.0973466,2667.6,2667.5,3.74869]
[1727530924247,0.7798,2667.8,2667.5,3.74869]
[1727530924456,0.0973466,2667.6,2667.5,3.74869]
[1727530924755,0.7798,2667.8,2667.5,3.74869]
[1727530924939,0.0973466,2667.6,2667.5,3.74869]
[1727530925121,0.7798,2667.8,2667.5,3.74869]
[1727530925516,0.0973466,2667.7,2667.5,3.74869]
[1727530925817,1.95874485,2667.8,2667.5,3.74869]
[1727530926020,0.0973466,2667.6,2667.5,3.74869]
[1727530926217,1.95874485,2667.8,2667.5,3.74869]
[1727530926454,0.0973466,2667.6,2667.5,3.74869]
[1727530926757,1.95874485,2667.8,2667.5,4.580664]
[1727530927058,1.95874485,2667.8,2667.5,3.74869]
[1727530927259,0.0973466,2667.7,2667.5,3.74869]
[1727530927468,1.95874485,2667.8,2667.5,3.74869]
[1727530927769,0.0973466,2667.6,2667.5,3.74869]
[1727530927961,1.95874485,2667.8,2667.6,3.74867]
[1727530928765,1.85874485,2667.8,2667.6,3.74867]
[1727530928949,1.17894485,2667.9,2667.7,3.74854]
[1727530929457,1.17894485,2667.9,2667.6,4.57078]
[1727530934385,1.17894485,2667.8,2667.6,3.74868]
[1727530935046,1.17894485,2667.9,2667.6,3.74858]
[1727530935255,1.17894485,2667.9,2667.7,3.7485]
[1727530936564,3.57157737,2668.0,2667.7,3.7485]
[1727530937063,3.57157737,2668.0,2667.7,7.49695]
[1727530937282,2.39263252,2668.0,2667.8,3.74837]
[1727530937487,0.09406499,2667.9,2667.7,4.58065]
[1727530938687,0.09406499,2667.9,2667.7,8.32911]
[1727530938889,0.09406499,2667.9,2667.7,4.58065]
[1727530939287,0.09406499,2667.9,2667.7,8.32912]
[1727530939585,0.09406499,2667.9,2667.8,3.7484]
[1727530943274,0.09406499,2667.9,2667.7,5.413562]
[1727530943888,0.09406499,2667.9,2667.8,3.7484]
[1727530947074,0.09406499,2667.9,2667.7,5.413642]
[1727530947275,0.09406499,2667.9,2667.8,3.7484]
[1727530948412,0.09406499,2667.9,2667.8,4.82317869]
[1727530954316,0.04406499,2667.9,2667.8,4.82317869]
[1727530954512,0.09282419,2667.9,2667.8,4.82317869]
[1727530961122,0.09282419,2667.9,2667.8,1.07477869]
[1727530961282,0.09282419,2667.9,2667.8,3.7484]
[1727530964295,1.17894485,2668.2,2667.9,4.53206]
[1727530964591,5.74745,2668.5,2668.1,3.74797]
[1727530964788,0.8217,2668.1,2667.8,1.25816193]
[1727530965119,1.58574492,2668.0,2667.6,3.74868]
[1727530965315,0.8217,2667.9,2667.6,3.74868]
[1727530965488,2.00064485,2667.9,2667.6,3.74868]
[1727530965890,2.00064485,2667.9,2667.7,3.74853]
[1727530966091,0.8217,2667.9,2667.7,3.74853]
[1727530966324,0.8217,2667.9,2667.4,3.0]
[1727530966533,0.8217,2667.9,2667.6,3.74861]
[1727530966742,0.8217,2667.9,2667.7,3.74853]
[1727530967111,0.8217,2667.9,2667.7,7.49699]
[1727530967636,0.8217,2667.9,2667.7,3.74846]
[1727530969156,0.8217,2667.9,2667.7,7.49692]
[1727530969354,0.8217,2667.9,2667.7,3.74846]
[1727530970214,1.17894485,2668.0,2667.5,0.7838]
[1727530970421,1.17894485,2668.1,2667.6,3.74857]
[1727530970736,1.57372829,2668.2,2667.7,0.7838]
[1727530970737,1.17894485,2668.2,2667.7,0.7838]
[1727530970943,1.17894485,2668.2,2668.0,3.74804]
[1727530971153,2.00064485,2668.3,2668.0,3.74804]
[1727530971324,1.17894485,2668.2,2668.0,3.74804]
[1727530972331,0.08535973,2668.1,2668.0,3.74804]
[1727530975541,1.26430458,2668.1,2668.0,3.74804]
[1727530975759,0.08535973,2668.1,2668.0,3.74804]
[1727530978669,1.57372829,2668.6,2668.5,3.74742]
[1727530978870,3.57372829,2668.9,2668.7,3.7471]
[1727530979165,2.0,2668.9,2668.7,3.7471]
[1727530979941,2.0,2668.9,2668.6,3.74727]
[1727530980531,2.0,2668.9,2668.6,3.7472]
[1727530981466,0.1282718,2669.0,2668.9,3.74686]
[1727530981680,0.1282718,2669.0,2668.8,3.74692]
[1727530982185,0.1282718,2669.0,2668.8,7.49384]
[1727530982348,0.1282718,2669.0,2668.9,3.74686]
[1727530982676,0.1282718,2669.0,2668.8,3.74692]
[1727530982839,0.1282718,2669.0,2668.8,3.74691]
[1727530984249,0.1282718,2669.0,2668.9,3.74686]
[1727530985470,0.10838467,2669.0,2668.9,3.74686]
[1727530986035,0.18487373,2669.0,2668.9,3.74686]
[1727530986846,0.18487373,2669.0,2668.8,7.49381]
[1727530987180,0.18487373,2669.0,2668.6,4.53977]
[1727530987351,0.8113,2668.9,2668.6,3.74717]
[1727530987740,0.07648906,2668.8,2668.6,3.74717]
[1727530987941,0.07648906,2668.8,2668.6,3.74723]
[1727530988181,0.07648906,2668.8,2668.6,3.74726]
[1727530989167,0.07648906,2668.8,2668.6,3.74719]
[1727530991400,0.07648906,2668.8,2668.6,3.74723]
[1727530992405,0.07648906,2668.8,2668.5,3.74734]
[1727530992569,0.7696,2668.6,2668.2,3.74777]
[1727530992767,0.7696,2668.6,2668.4,3.74755]
[1727530993010,0.07648906,2668.8,2668.4,3.74755]
[1727530993011,0.07669516,2668.5,2668.4,3.74755]
[1727530993296,0.7696,2668.8,2668.4,3.74755]
[1727530993503,0.07669516,2668.5,2668.4,3.74755]
[1727530993812,0.7696,2668.8,2668.4,3.74755]
[1727530993959,0.07669516,2668.5,2668.4,3.74755]
[1727530994155,0.7696,2668.8,2668.4,3.74755]
[1727530994361,0.07669516,2668.5,2668.4,3.74755]
[1727530994576,0.7696,2668.8,2668.4,3.74755]
[1727530994860,0.7696,2668.8,2668.3,3.74759]
[1727530995060,0.07669516,2668.7,2668.5,3.74741]
[1727530995273,0.7696,2668.8,2668.5,3.74741]
[1727530995493,0.07669516,2668.6,2668.5,3.74741]
[1727530995668,0.7696,2668.8,2668.5,3.74741]
[1727530996201,0.07669516,2668.7,2668.5,3.74741]
[1727530996499,0.7696,2668.8,2668.3,3.74759]
[1727530996704,0.0771148,2668.6,2668.4,3.74754]
[1727530996912,0.7696,2668.8,2668.4,3.74754]
[1727530997077,0.10838467,2669.0,2668.8,3.74692]
[1727530997459,0.07433381,2668.9,2668.8,3.74692]
[1727530998265,0.07433381,2668.9,2668.7,3.74707]
[1727530998471,0.07433381,2668.9,2668.8,3.747]
[1727531000473,0.07433381,2668.9,2668.8,4.571597]
[1727531000704,0.07433381,2668.9,2668.8,3.747]
[1727531007815,0.07433381,2668.9,2668.4,4.496963]
[1727531008019,0.07433381,2668.9,2668.7,3.74703]
[1727531015831,0.07433381,2668.9,2668.8,3.747]
[1727531016144,0.07433381,2668.9,2668.7,3.74703]
[1727531016345,0.07433381,2668.9,2668.7,7.49408]
[1727531017446,0.07433381,2668.9,2668.8,3.747]
[1727531026267,0.07433381,2668.9,2668.7,3.7471]
[1727531026428,0.07433381,2668.9,2668.8,3.747]
[1727531038506,0.07433381,2668.9,2668.8,4.5471]
[1727531039025,0.07433381,2668.9,2668.8,7.19578193]
[1727531039210,0.07433381,2668.9,2668.8,7.12084241]
[1727531041651,0.07433381,2668.9,2668.8,9.23294812]
[1727531043444,0.07433381,2668.9,2668.8,9.23298836]
[1727531044050,0.07433381,2668.9,2668.8,13.4135531]